fUSD/lending_fUSD_20240616
["ID","MTS","AMOUNT","RATE_DAILY","PERIOD"]
[329644565,1718538688253,-450.22574179,0.00022465,3]
[329644566,1718538688266,-500.0,0.00022465,3]
[329644567,1718538688282,-667.84,0.00022465,3]
[329644568,1718538688297,-500.0,0.00022465,3]
[329644569,1718538688316,-500.0,0.00022465,3]
[329644570,1718538688333,-500.0,0.00022465,3]
[329644571,1718538688344,-500.0,0.00022465,3]
[329644572,1718538688361,-500.0,0.00022465,3]
[329644573,1718538688378,-500.0,0.00022465,3]
[329644574,1718538688397,-500.0,0.00022465,3]
[329644575,1718538688409,-500.0,0.00022465,3]
[329644576,1718538688433,-500.0,0.00022465,3]
[329644577,1718538688463,-500.0,0.00022465,3]
[329644578,1718538688480,-500.0,0.00022465,3]
[329644579,1718538688491,-500.0,0.00022465,3]
[329644580,1718538688518,-625.0,0.00022465,3]
[329644581,1718538688532,-500.0,0.00022465,3]
[329644582,1718538688547,-565.57755534,0.00022465,3]
[329644583,1718538688559,-6613.19,0.00022465,3]
[329644584,1718538688577,-500.0,0.00022465,3]
[329644585,1718538688589,-500.0,0.00022465,3]
[329644586,1718538688605,-626.88,0.00022465,3]
[329644587,1718538688625,-500.0,0.00022465,3]
[329644588,1718538688653,-500.0,0.00022465,3]
[329644589,1718538688665,-1006.45,0.00022465,3]
[329644590,1718538688694,-625.67,0.00022465,3]
[329644591,1718538688708,-151.0,0.00022465,7]
[329644592,1718538688720,-500.0,0.00022465,3]
[329644593,1718538688731,-500.0,0.00022465,3]
[329644594,1718538688746,-500.0,0.00022465,3]
[329644595,1718538688759,-500.0,0.00022465,3]
[329644596,1718538688776,-643.81,0.00022465,3]
[329644597,1718538688789,-500.0,0.00022465,3]
[329644598,1718538688803,-1016.21,0.00022465,3]
[329644599,1718538688816,-500.0,0.00022465,3]
[329644600,1718538688840,-556.19,0.00022465,3]
[329644601,1718538688855,-500.0,0.00022465,3]
[329644602,1718538688874,-511.17690633,0.00022465,3]
[329644603,1718538688887,-500.0,0.00022465,3]
[329644604,1718538688901,-849.46,0.00022465,3]
[329644605,1718538688913,-588.93,0.00022465,3]
[329644606,1718538688926,-686.57,0.00022465,3]
[329644607,1718538688940,-500.0,0.00022465,3]
[329644608,1718538688958,-500.0,0.00022465,3]
[329644609,1718538688973,-500.0,0.00022465,3]
[329644610,1718538688995,-568.35,0.00022465,3]
[329644611,1718538689014,-503.85,0.00022465,3]
[329644612,1718538689030,-500.0,0.00022465,3]
[329644613,1718538689055,-902.54,0.00022465,3]
[329644614,1718538689077,-500.0,0.00022465,3]
[329644615,1718538689092,-243.84989707,0.00022465,3]
[329644616,1718538689104,-500.0,0.00022465,3]
[329644617,1718538689119,-337.86446737,0.00022465,3]
[329644618,1718538689140,-500.0,0.00022465,3]
[329644619,1718538689153,-500.0,0.00022465,3]
[329644620,1718538689171,-500.0,0.00022465,3]
[329644621,1718538689182,-500.0,0.00022465,3]
[329644622,1718538689202,-500.0,0.00022465,3]
[329644623,1718538689218,-405.87946069,0.00022465,3]
[329644624,1718538689233,-500.0,0.00022465,3]
[329644625,1718538689247,-500.0,0.00022465,3]
[329644626,1718538689280,-500.0,0.00022465,3]
[329644627,1718538689294,-500.0,0.00022465,3]
[329644628,1718538689318,-833.07,0.00022465,3]
[329644629,1718538689343,-500.0,0.00022465,3]
[329644630,1718538689356,-500.0,0.00022465,3]
[329644631,1718538689378,-500.0,0.00022465,3]
[329644632,1718538689393,-511.59,0.00022465,3]
[329644633,1718538689419,-1114.37,0.00022465,3]
[329644634,1718538689438,-500.0,0.00022465,3]
[329644635,1718538689452,-535.83245497,0.00022465,3]
[329644636,1718538689464,-500.0,0.00022465,3]
[329644637,1718538689505,-600.89051624,0.00022465,3]
[329644638,1718538689535,-867.65,0.00022465,3]
[329644639,1718538689549,-500.0,0.00022465,3]
[329644640,1718538689564,-564.01,0.00022465,3]
[329644641,1718538689577,-178.94470185,0.00022465,3]
[329644642,1718538689595,-500.0,0.00022465,3]
[329644643,1718538689607,-507.91,0.00022465,3]
[329644644,1718538689620,-500.0,0.00022465,3]
[329644645,1718538689651,-500.0,0.00022465,3]
[329644646,1718538689672,-500.0,0.00022465,3]
[329644647,1718538689689,-531.33,0.00022465,3]
[329644648,1718538689740,-500.0,0.00022465,3]
[329644649,1718538689770,-500.0,0.00022465,3]
[329644650,1718538689809,-500.0,0.00022465,3]
[329644651,1718538689833,-500.0,0.00022465,3]
[329644652,1718538689852,-500.0,0.00022465,3]
[329644653,1718538689881,-500.0,0.00022465,3]
[329644654,1718538689911,-618.4,0.00022465,3]
[329644655,1718538689945,-500.0,0.00022465,3]
[329644656,1718538689959,-500.0,0.00022465,3]
[329644657,1718538689974,-561.59,0.00022465,3]
[329644658,1718538689991,-551.81,0.00022465,3]
[329644659,1718538690005,-500.0,0.00022465,3]
[329644660,1718538690018,-500.0,0.00022465,3]
[329644661,1718538690032,-527.68,0.00022465,3]
[329644662,1718538690044,-500.0,0.00022465,3]
[329644663,1718538690070,-540.61,0.00022465,3]
[329644664,1718538690083,-827.67,0.00022465,3]
[329644665,1718538690094,-500.0,0.00022465,3]
[329644666,1718538690108,-500.0,0.00022465,3]
[329644667,1718538690127,-500.0,0.00022465,3]
[329644668,1718538690156,-500.0,0.00022465,3]
[329644669,1718538690177,-500.0,0.00022465,3]
[329644670,1718538690211,-500.0,0.00022465,3]
[329644671,1718538690227,-500.0,0.00022465,3]
[329644672,1718538690238,-203.22,0.00022465,3]
[329644673,1718538690259,-500.0,0.00022465,3]
[329644674,1718538690281,-1352.2,0.00022465,3]
[329644675,1718538690297,-500.0,0.00022465,3]
[329644676,1718538690319,-500.0,0.00022465,3]
[329644677,1718538690331,-500.0,0.00022465,3]
[329644678,1718538690343,-500.0,0.00022465,3]
[329644679,1718538690359,-500.0,0.00022465,3]
[329644680,1718538690385,-500.0,0.00022465,3]
[329644681,1718538690399,-500.0,0.00022465,3]
[329644682,1718538690416,-552.44450699,0.00022465,3]
[329644683,1718538690446,-500.0,0.00022465,3]
[329644684,1718538690461,-500.0,0.00022465,3]
[329644685,1718538690472,-500.0,0.00022465,3]
[329644686,1718538690521,-503.17,0.00022465,3]
[329644687,1718538690537,-500.0,0.00022465,3]
[329644688,1718538690551,-500.0,0.00022465,3]
[329644689,1718538690568,-962.95,0.00022465,3]
[329644690,1718538690583,-500.0,0.00022465,3]
[329644691,1718538690599,-500.0,0.00022465,3]
[329644692,1718538690614,-500.0,0.00022465,3]
[329644693,1718538690635,-500.0,0.00022465,3]
[329644694,1718538690653,-500.0,0.00022465,3]
[329644695,1718538690665,-500.0,0.00022465,3]
[329644696,1718538690682,-500.0,0.00022465,3]
[329644697,1718538690698,-659.13,0.00022465,3]
[329644698,1718538690711,-500.0,0.00022465,3]
[329644699,1718538690724,-500.0,0.00022465,3]
[329644700,1718538690748,-500.0,0.00022465,3]
[329644701,1718538690769,-500.0,0.00022465,3]
[329644702,1718538690784,-798.56,0.00022465,3]
[329644703,1718538690797,-500.0,0.00022465,3]
[329644704,1718538690811,-500.0,0.00022465,3]
[329644705,1718538690831,-500.0,0.00022465,3]
[329644706,1718538690846,-500.0,0.00022465,3]
[329644707,1718538690865,-500.0,0.00022465,3]
[329644708,1718538690904,-500.0,0.00022465,3]
[329644709,1718538690951,-1149.79,0.00022465,3]
[329644710,1718538690976,-206.51119658,0.00022465,3]
[329644711,1718538691006,-536.22256385,0.00022465,3]
[329644712,1718538691018,-500.0,0.00022465,3]
[329644713,1718538691036,-500.0,0.00022465,3]
[329644714,1718538691052,-1048.66,0.00022465,3]
[329644715,1718538691068,-500.0,0.00022465,3]
[329644716,1718538691080,-500.0,0.00022465,3]
[329644717,1718538691097,-500.0,0.00022465,3]
[329644718,1718538691115,-500.0,0.00022465,3]
[329644719,1718538691129,-500.0,0.00022465,3]
[329644720,1718538691151,-500.0,0.00022465,3]
[329644721,1718538691183,-500.0,0.00022465,3]
[329644722,1718538691196,-500.0,0.00022465,3]
[329644723,1718538691232,-500.0,0.00022465,3]
[329644724,1718538691251,-500.0,0.00022465,3]
[329644725,1718538691275,-500.0,0.00022465,3]
[329644726,1718538691305,-500.0,0.00022465,3]
[329644727,1718538691322,-827.65,0.00022465,3]
[329644728,1718538691343,-500.0,0.00022465,3]
[329644729,1718538691356,-500.0,0.00022465,3]
[329644730,1718538691371,-500.0,0.00022465,3]
[329644731,1718538691387,-500.0,0.00022465,3]
[329644732,1718538691402,-500.0,0.00022465,3]
[329644733,1718538691429,-3617.46,0.00022465,3]
[329644734,1718538691446,-500.0,0.00022465,3]
[329644735,1718538691467,-500.0,0.00022465,3]
[329644736,1718538691495,-500.0,0.00022465,3]
[329644737,1718538691510,-500.0,0.00022465,3]
[329644738,1718538691531,-500.0,0.00022465,3]
[329644739,1718538691551,-500.0,0.00022465,3]
[329644740,1718538691579,-910.63,0.00022465,3]
[329644741,1718538691591,-580.02152491,0.00022465,3]
[329644742,1718538691612,-500.0,0.00022465,3]
[329644743,1718538691624,-500.0,0.00022465,3]
[329644744,1718538691662,-599.48,0.00022465,3]
[329644745,1718538691684,-500.0,0.00022465,3]
[329644746,1718538691698,-500.0,0.00022465,3]
[329644747,1718538691737,-7927.95,0.00022465,3]
[329644748,1718538691764,-500.0,0.00022465,3]
[329644749,1718538691776,-500.0,0.00022465,3]
[329644750,1718538691791,-500.0,0.00022465,3]
[329644751,1718538691840,-561.20316157,0.00022465,3]
[329644752,1718538691856,-524.41,0.00022465,3]
[329644753,1718538691878,-500.0,0.00022465,3]
[329644754,1718538691911,-4256.0,0.00022465,3]
[329644755,1718538691927,-500.0,0.00022465,3]
[329644756,1718538691958,-500.0,0.00022465,3]
[329644757,1718538691972,-543.31371926,0.00022465,3]
[329644758,1718538692032,-500.0,0.00022465,3]
[329644759,1718538692065,-500.0,0.00022465,3]
[329644760,1718538692078,-500.0,0.00022465,3]
[329644761,1718538692093,-500.0,0.00022465,3]
[329644762,1718538692112,-1338.61,0.00022465,3]
[329644763,1718538692151,-500.0,0.00022465,3]
[329644764,1718538692174,-500.0,0.00022465,3]
[329644765,1718538692199,-500.0,0.00022465,3]
[329644766,1718538692220,-500.0,0.00022465,3]
[329644767,1718538692235,-1102.86,0.00022465,3]
[329644768,1718538692252,-617.03265528,0.00022465,3]
[329644769,1718538692266,-508.18861052,0.00022465,3]
[329644770,1718538692280,-500.0,0.00022465,3]
[329644771,1718538692298,-500.0,0.00022465,3]
[329644772,1718538692313,-500.0,0.00022465,3]
[329644773,1718538692521,-500.0,0.00022465,3]
[329644774,1718538692568,-500.0,0.00022465,3]
[329644775,1718538692583,-500.0,0.00022465,3]
[329644776,1718538692595,-1168.34,0.00022465,3]
[329644777,1718538692608,-500.0,0.00022465,3]
[329644778,1718538692619,-2020.94,0.00022465,3]
[329644779,1718538692630,-500.0,0.00022465,3]
[329644780,1718538692641,-1805.75,0.00022465,3]
[329644781,1718538692653,-500.0,0.00022465,3]
[329644782,1718538692665,-500.0,0.00022465,3]
[329644783,1718538692678,-16716.72,0.00022465,3]
[329644784,1718538692689,-1241.14,0.00022465,3]
[329644785,1718538692701,-500.0,0.00022465,3]
[329644786,1718538692717,-500.0,0.00022465,3]
[329644787,1718538692732,-500.0,0.00022465,3]
[329644788,1718538692746,-500.0,0.00022465,3]
[329644789,1718538692761,-2124.83,0.00022465,3]
[329644790,1718538692774,-500.0,0.00022465,3]
[329644791,1718538692786,-500.0,0.00022465,3]
[329644792,1718538692797,-8693.33,0.00022465,3]
[329644793,1718538692808,-1183.03,0.00022465,3]
[329644794,1718538692820,-4851.41,0.00022465,3]
[329644795,1718538692839,-500.0,0.00022465,3]
[329644796,1718538692855,-2372.0,0.00022465,3]
[329644797,1718538692870,-500.0,0.00022465,3]
[329644798,1718538692899,-773.0,0.00022465,3]
[329644799,1718538692914,-500.0,0.00022465,3]
[329644800,1718538692931,-500.0,0.00022465,3]
[329644801,1718538692964,-500.0,0.00022465,3]
[329644802,1718538692981,-1272.31,0.00022465,3]
[329644803,1718538693005,-1816.2,0.00022465,3]
[329644804,1718538693019,-500.0,0.00022465,3]
[329644805,1718538693034,-500.0,0.00022465,3]
[329644806,1718538693049,-500.0,0.00022465,3]
[329644807,1718538693061,-500.0,0.00022465,3]
[329644808,1718538693090,-500.0,0.00022465,3]
[329644809,1718538693106,-500.0,0.00022465,3]
[329644810,1718538693128,-2506.46,0.00022465,3]
[329644811,1718538693146,-857.28,0.00022465,3]
[329644812,1718538693163,-500.0,0.00022465,3]
[329644813,1718538693175,-500.0,0.00022465,3]
[329644814,1718538693205,-500.0,0.00022465,3]
[329644815,1718538693236,-500.0,0.00022465,3]
[329644816,1718538693247,-510.22,0.00022465,3]
[329644817,1718538693261,-542.84,0.00022465,3]
[329644818,1718538693289,-500.0,0.00022465,3]
[329644819,1718538693308,-550.33,0.00022465,3]
[329644820,1718538693329,-500.0,0.00022465,3]
[329644821,1718538693352,-1956.96,0.00022465,3]
[329644822,1718538693368,-3926.03,0.00022465,3]
[329644823,1718538693380,-740.8,0.00022465,3]
[329644824,1718538693400,-500.0,0.00022465,3]
[329644825,1718538693411,-962.96,0.00022465,3]
[329644826,1718538693432,-500.0,0.00022465,3]
[329644827,1718538693470,-5131.49,0.00022465,3]
[329644828,1718538693497,-500.0,0.00022465,3]
[329644829,1718538693509,-500.0,0.00022465,3]
[329644830,1718538693521,-500.0,0.00022465,3]
[329644831,1718538693533,-500.0,0.00022465,3]
[329644832,1718538693545,-500.0,0.00022465,3]
[329644833,1718538693557,-1515.06,0.00022465,3]
[329644834,1718538693571,-933.52,0.00022465,3]
[329644835,1718538693593,-605.14,0.00022465,3]
[329644836,1718538693624,-500.0,0.00022465,3]
[329644837,1718538693666,-683.72,0.00022465,3]
[329644838,1718538693680,-1580.64,0.00022465,3]
[329644839,1718538693693,-1085.84,0.00022465,3]
[329644840,1718538693708,-500.0,0.00022465,3]
[329644841,1718538693743,-1501.56,0.00022465,3]
[329644842,1718538693756,-500.0,0.00022465,3]
[329644843,1718538693775,-7059.05,0.00022465,3]
[329644844,1718538693792,-1038.4,0.00022465,3]
[329644845,1718538693813,-500.0,0.00022465,3]
[329644846,1718538693850,-270.34,0.00022465,3]
[329644847,1718538693863,-500.0,0.00022465,3]
[329644848,1718538693884,-500.0,0.00022465,3]
[329644849,1718538693900,-500.0,0.00022465,3]
[329644850,1718538693912,-6081.58,0.00022465,3]
[329644851,1718538693940,-500.0,0.00022465,3]
[329644852,1718538693965,-500.0,0.00022465,3]
[329644853,1718538693978,-267.20924898,0.00022465,3]
[329644854,1718538694007,-500.0,0.00022465,3]
[329644855,1718538694030,-500.0,0.00022465,3]
[329644856,1718538694042,-3600.18,0.00022465,3]
[329644857,1718538694053,-500.0,0.00022465,3]
[329644858,1718538694071,-3713.02,0.00022465,3]
[329644859,1718538694085,-500.0,0.00022465,3]
[329644860,1718538694101,-1899.16,0.00022465,3]
[329644861,1718538694112,-3745.09,0.00022465,3]
[329644862,1718538694124,-500.0,0.00022465,3]
[329644863,1718538694135,-739.36,0.00022465,3]
[329644864,1718538694169,-2331.02,0.00022465,3]
[329644865,1718538694181,-954.22,0.00022465,3]
[329644866,1718538694206,-2038.78,0.00022465,3]
[329644867,1718538694219,-3357.07,0.00022465,3]
[329644868,1718538694243,-645.61,0.00022465,3]
[329644869,1718538694256,-500.0,0.00022465,3]
[329644870,1718538694292,-3148.47,0.00022465,3]
[329644871,1718538694311,-996.94,0.00022465,3]
[329644872,1718538694328,-500.0,0.00022465,3]
[329644873,1718538694344,-529.99122601,0.00022465,3]
[329644874,1718538694356,-200.0,0.00022465,3]
[329644875,1718538694370,-500.0,0.00022465,3]
[329644876,1718538694383,-728.59,0.00022465,3]
[329644877,1718538694394,-654.77,0.00022465,3]
[329644878,1718538694410,-500.0,0.00022465,3]
[329644879,1718538694422,-500.0,0.00022465,3]
[329644880,1718538694440,-1948.76,0.00022465,3]
[329644881,1718538694453,-962.07,0.00022465,3]
[329644882,1718538694465,-2105.14,0.00022465,3]
[329644883,1718538694479,-1292.48,0.00022465,3]
[329644884,1718538694497,-500.0,0.00022465,3]
[329644885,1718538694509,-500.0,0.00022465,3]
[329644886,1718538694527,-500.0,0.00022465,3]
[329644887,1718538694538,-500.0,0.00022465,3]
[329644888,1718538694550,-500.0,0.00022465,3]
[329644889,1718538694563,-356.07009723,0.00022465,3]
[329644890,1718538694574,-625.93,0.00022465,3]
[329644891,1718538694586,-500.0,0.00022465,3]
[329644892,1718538694598,-500.0,0.00022465,3]
[329644893,1718538694609,-1856.52,0.00022465,3]
[329644894,1718538694620,-1002.46,0.00022465,3]
[329644895,1718538694636,-1386.03,0.00022465,3]
[329644896,1718538694657,-500.0,0.00022465,3]
[329644897,1718538694668,-500.0,0.00022465,3]
[329644898,1718538694683,-779.24,0.00022465,3]
[329644899,1718538694697,-500.0,0.00022465,3]
[329644900,1718538694717,-500.0,0.00022465,3]
[329644901,1718538694729,-1126.05,0.00022465,3]
[329644902,1718538694745,-500.0,0.00022465,3]
[329644903,1718538694760,-2255.51,0.00022465,3]
[329644904,1718538694783,-304.06348206,0.00022465,3]
[329644905,1718538694800,-541.94585992,0.00022465,3]
[329644906,1718538694811,-500.0,0.00022465,3]
[329644907,1718538694824,-500.0,0.00022465,3]
[329644908,1718538694834,-500.0,0.00022465,3]
[329644909,1718538694849,-529.98619483,0.00022465,3]
[329644910,1718538694864,-500.0,0.00022465,3]
[329644911,1718538694881,-871.1,0.00022465,3]
[329644912,1718538694894,-3285.08,0.00022465,3]
[329644913,1718538694909,-4311.37,0.00022465,3]
[329644914,1718538694921,-500.0,0.00022465,3]
[329644915,1718538694932,-755.82,0.00022465,3]
[329644916,1718538694943,-1618.36,0.00022465,3]
[329644917,1718538694956,-500.0,0.00022465,3]
[329644918,1718538694978,-166.60298438,0.00022465,3]
[329644919,1718538694991,-500.0,0.00022465,3]
[329644920,1718538695005,-500.0,0.00022465,3]
[329644921,1718538695033,-1768.97,0.00022465,3]
[329644922,1718538695046,-1055.75,0.00022465,3]
[329644923,1718538695064,-3359.28,0.00022465,3]
[329644924,1718538695084,-1535.59,0.00022465,3]
[329644925,1718538695097,-183.84231242,0.00022465,3]
[329644926,1718538695113,-500.0,0.00022465,3]
[329644927,1718538695125,-2155.72,0.00022465,3]
[329644928,1718538695140,-4282.88,0.00022465,3]
[329644929,1718538695165,-512.52,0.00022465,3]
[329644930,1718538695179,-500.0,0.00022465,3]
[329644931,1718538695191,-527.63,0.00022465,3]
[329644932,1718538695218,-500.0,0.00022465,3]
[329644933,1718538695235,-2030.88,0.00022465,3]
[329644934,1718538695248,-1367.9,0.00022465,3]
[329644935,1718538695277,-617.75,0.00022465,3]
[329644936,1718538695304,-500.0,0.00022465,3]
[329644937,1718538695319,-525.99,0.00022465,3]
[329644938,1718538695333,-500.0,0.00022465,3]
[329644939,1718538695354,-500.0,0.00022465,3]
[329644940,1718538695377,-596.9,0.00022465,3]
[329644941,1718538695388,-1369.58,0.00022465,3]
[329644942,1718538695413,-2396.45,0.00022465,3]
[329644943,1718538695444,-1410.09,0.00022465,3]
[329644944,1718538695463,-500.0,0.00022465,3]
[329644945,1718538695475,-500.0,0.00022465,3]
[329644946,1718538695490,-500.0,0.00022465,3]
[329644947,1718538695505,-642.43,0.00022465,3]
[329644948,1718538695517,-2697.85,0.00022465,3]
[329644949,1718538695531,-1084.91,0.00022465,3]
[329644950,1718538695555,-500.0,0.00022465,3]
[329644951,1718538695567,-1718.15,0.00022465,3]
[329644952,1718538695589,-500.0,0.00022465,3]
[329644953,1718538695608,-500.0,0.00022465,3]
[329644954,1718538695626,-586.02167564,0.00022465,3]
[329644955,1718538695641,-500.0,0.00022465,3]
[329644956,1718538695654,-1280.9,0.00022465,3]
[329644957,1718538695671,-500.0,0.00022465,3]
[329644958,1718538695689,-1550.83,0.00022465,3]
[329644959,1718538695706,-1300.26,0.00022465,3]
[329644960,1718538695730,-1551.39,0.00022465,3]
[329644961,1718538695747,-930.99,0.00022465,3]
[329644962,1718538695783,-500.0,0.00022465,3]
[329644963,1718538695797,-500.0,0.00022465,3]
[329644964,1718538695824,-200.5871952,0.00022465,3]
[329644965,1718538695846,-500.0,0.00022465,3]
[329644966,1718538695860,-500.0,0.00022465,3]
[329644967,1718538695907,-500.0,0.00022465,3]
[329644968,1718538695920,-2227.01,0.00022465,3]
[329644969,1718538695937,-500.0,0.00022465,3]
[329644970,1718538695951,-382.62721888,0.00022465,3]
[329644971,1718538695970,-500.0,0.00022465,3]
[329644972,1718538695983,-517.9,0.00022465,3]
[329644973,1718538696004,-500.0,0.00022465,3]
[329644974,1718538696019,-500.0,0.00022465,3]
[329644975,1718538696041,-500.0,0.00022465,3]
[329644976,1718538696067,-762.39,0.00022465,3]
[329644977,1718538696085,-500.0,0.00022465,3]
[329644978,1718538696098,-500.0,0.00022465,3]
[329644979,1718538696110,-1044.11,0.00022465,3]
[329644980,1718538696121,-500.0,0.00022465,3]
[329644981,1718538696133,-500.0,0.00022465,3]
[329644982,1718538696149,-500.0,0.00022465,3]
[329644983,1718538696164,-500.0,0.00022465,3]
[329644984,1718538696175,-721.44,0.00022465,3]
[329644985,1718538696186,-500.0,0.00022465,3]
[329644986,1718538696198,-500.0,0.00022465,3]
[329644987,1718538696209,-981.85,0.00022465,3]
[329644988,1718538696222,-500.0,0.00022465,3]
[329644989,1718538696234,-1486.62,0.00022465,3]
[329644990,1718538696254,-820.97,0.00022465,3]
[329644991,1718538696270,-227.928492,0.00022466,2]
[329644992,1718538696300,-715.15608201,0.00022522,2]
[329644993,1718538696313,-6366.79132347,0.000226,2]
[329644994,1718538696335,-300.0,0.00022608,2]
[329644995,1718538696352,-150.0,0.00022608,2]
[329644996,1718538696395,-150.0,0.00022608,2]
[329644997,1718538696409,-150.0,0.00022608,2]
[329644998,1718538696426,-777.49246417,0.00022613,2]
[329644999,1718538696437,-150.693063,0.00022696,2]
[329645000,1718538696458,-183.654433,0.00022696,2]
[329645001,1718538696470,-267.31376338,0.00022737,2]
[329645002,1718538696483,-156.44286708,0.00022737,2]
[329645003,1718538696495,-212.59731629,0.00022737,2]
[329645004,1718538696507,-500.0,0.00022739,3]
[329645005,1718538696524,-315.6365711,0.00022739,3]
[329645006,1718538696591,-500.0,0.00022739,3]
[329645007,1718538696611,-500.0,0.00022739,3]
[329645008,1718538696622,-340.93230457,0.00022739,3]
[329645009,1718538696633,-500.0,0.00022739,3]
[329645010,1718538696660,-500.0,0.00022739,3]
[329645011,1718538696671,-515.44473226,0.00022739,3]
[329645012,1718538696682,-500.0,0.00022739,3]
[329645013,1718538696698,-153.40826755,0.00022739,3]
[329645014,1718538696711,-500.0,0.00022739,3]
[329645015,1718538696724,-500.0,0.00022739,3]
[329645016,1718538696736,-252.56867267,0.00022739,3]
[329645017,1718538696748,-500.0,0.00022739,3]
[329645018,1718538696763,-500.0,0.00022739,3]
[329645019,1718538696780,-500.0,0.00022739,3]
[329645020,1718538696797,-194.47144468,0.00022739,3]
[329645021,1718538696810,-500.0,0.00022739,3]
[329645022,1718538696825,-500.0,0.00022739,3]
[329645023,1718538696838,-500.0,0.00022739,3]
[329645024,1718538696854,-500.0,0.00022739,3]
[329645025,1718538696867,-500.0,0.00022739,3]
[329645026,1718538696881,-500.0,0.00022739,3]
[329645027,1718538696892,-500.0,0.00022739,3]
[329645028,1718538696908,-500.0,0.00022739,3]
[329645029,1718538696920,-500.0,0.00022739,3]
[329645030,1718538696942,-500.0,0.00022739,3]
[329645031,1718538696957,-500.0,0.00022739,3]
[329645032,1718538696996,-500.0,0.00022739,3]
[329645033,1718538697025,-500.0,0.00022739,3]
[329645034,1718538697048,-500.0,0.00022739,3]
[329645035,1718538697061,-667.84,0.00022739,3]
[329645036,1718538697075,-161.69405341,0.00022739,3]
[329645037,1718538697093,-500.0,0.00022739,3]
[329645038,1718538697108,-500.0,0.00022739,3]
[329645039,1718538697121,-500.0,0.00022739,3]
[329645040,1718538697141,-500.0,0.00022739,3]
[329645041,1718538697159,-500.0,0.00022739,3]
[329645042,1718538697173,-500.0,0.00022739,3]
[329645043,1718538697189,-500.0,0.00022739,3]
[329645044,1718538697210,-500.0,0.00022739,3]
[329645045,1718538697225,-500.0,0.00022739,3]
[329645046,1718538697238,-500.0,0.00022739,3]
[329645047,1718538697250,-500.0,0.00022739,3]
[329645048,1718538697273,-625.0,0.00022739,3]
[329645049,1718538697314,-6613.19,0.00022739,3]
[329645050,1718538697338,-500.0,0.00022739,3]
[329645051,1718538697358,-500.0,0.00022739,3]
[329645052,1718538697370,-626.88,0.00022739,3]
[329645053,1718538697381,-500.0,0.00022739,3]
[329645054,1718538697394,-500.0,0.00022739,3]
[329645055,1718538697426,-1006.45,0.00022739,3]
[329645056,1718538697439,-625.67,0.00022739,3]
[329645057,1718538697457,-500.0,0.00022739,3]
[329645058,1718538697480,-500.0,0.00022739,3]
[329645059,1718538697492,-500.0,0.00022739,3]
[329645060,1718538697503,-500.0,0.00022739,3]
[329645061,1718538697521,-643.81,0.00022739,3]
[329645062,1718538697534,-500.0,0.00022739,3]
[329645063,1718538697545,-1016.21,0.00022739,3]
[329645064,1718538697559,-500.0,0.00022739,3]